bitfinex-derivatives/quotes_ETHF0:USTF0_20251216
["timestamp","ask_amount","ask_price","bid_price","bid_amount"]
[1765903974671,2.9927,2940.8,2940.7,4.79055624]
[1765903974981,1.4908,2940.8,2940.7,4.79055624]
[1765903975377,2.9927,2940.8,2940.7,3.21035624]
[1765903975771,0.9287,2941.0,2940.7,6.29675624]
[1765903976380,1.4908,2940.8,2940.7,6.29675624]
[1765903978682,0.00783192,2941.3,2940.9,3.0864]
[1765903978884,1.4908,2941.0,2940.9,3.0864]
[1765903979078,2.9927,2941.0,2940.7,0.00255624]
[1765903979488,2.9927,2940.8,2940.7,1.58275624]
[1765903979984,2.9927,2940.8,2940.7,0.00255624]
[1765903980180,6.2005,2940.8,2940.7,0.00255624]
[1765903980482,0.9287,2940.5,2940.0,0.9075]
[1765903980777,3.2078,2940.5,2940.4,3.0864]
[1765903980980,7.1292,2940.5,2939.9,0.00510604]
[1765903981180,3.9214,2940.0,2939.9,0.00510604]
[1765903981481,4.1365,2940.5,2939.9,1.58844412]
[1765903983882,3.2078,2940.2,2939.9,3.03814412]
[1765903984180,4.1365,2940.5,2939.9,3.03814412]
[1765903984787,1.4138,2940.0,2939.9,3.03814412]
[1765903984987,1.4138,2940.0,2939.9,1.58844412]
[1765903985580,4.1365,2940.5,2939.9,3.03814412]
[1765903986190,3.6615,2940.0,2939.9,0.00824412]
[1765903986883,2.7976,2939.3,2939.2,3.2078]
[1765903987187,1.4138,2939.0,2938.9,4.5539]
[1765903987388,2.7976,2939.0,2938.9,4.5539]
[1765903987586,2.7976,2939.0,2938.6,3.2078]
[1765903987886,1.41675489,2939.0,2938.9,1.3461]
[1765903988081,2.80055489,2939.0,2938.6,3.21212633]
[1765903988584,2.7976,2938.7,2938.6,1.35042633]
[1765903988890,3.2078,2938.9,2938.6,1.35042633]
[1765903989485,1.4138,2938.7,2938.6,1.35042633]
[1765903989690,2.7976,2938.7,2938.6,0.00432633]
[1765903990894,0.8639,2938.5,2938.0,3.2078]
[1765903991186,1.4138,2938.1,2938.0,1.3461]
[1765903991392,0.8639,2938.0,2937.3,3.2078]
[1765903991589,3.2078,2938.2,2937.6,3.2078]
[1765903992090,3.2078,2938.2,2937.5,0.5981]
[1765903992695,3.2078,2938.2,2937.3,3.2078]
[1765903993287,1.4138,2937.4,2937.3,1.3461]
[1765903993489,1.4138,2937.3,2937.2,0.00510604]
[1765903993683,2.7976,2937.3,2937.2,0.00510604]
[1765903993883,43.5976,2937.3,2937.2,0.00510604]
[1765903994088,2.7976,2937.1,2937.0,0.00295619]
[1765903994385,6.0054,2937.1,2937.0,0.00295619]
[1765903994797,3.2078,2937.1,2937.0,2.79875619]
[1765903995102,3.21290604,2937.5,2937.4,2.7958]
[1765903995702,0.00510604,2937.5,2937.4,2.7958]
[1765903997418,3.2078,2938.0,2937.9,2.7958]
[1765903998112,6.0054,2938.0,2937.5,0.8203]
[1765903998313,6.01050604,2938.0,2937.5,0.82540604]
[1765903998910,4.62670604,2938.0,2937.9,1.3461]
[1765903999213,0.00510604,2938.0,2937.9,2.7958]
[1765904000012,1.4138,2937.7,2937.6,4.5539]
[1765904000213,0.86900604,2938.0,2937.6,6.0036]
[1765904000915,0.00510604,2938.0,2937.9,2.7958]
[1765904004217,2.80270604,2938.0,2937.9,1.3461]
[1765904004422,3.66660604,2938.0,2937.6,3.2078]
[1765904004717,2.80270604,2938.0,2937.9,1.3461]
[1765904005218,0.00510604,2938.0,2937.9,2.7958]
[1765904005718,0.00510604,2938.0,2937.6,3.2078]
[1765904005719,2.80270604,2938.0,2937.6,3.2078]
[1765904005912,1.4138,2937.7,2937.6,6.0036]
[1765904006715,2.7976,2937.6,2937.5,0.00510604]
[1765904007518,3.21290604,2938.0,2937.9,2.7958]
[1765904007718,6.01050604,2938.0,2937.9,1.3461]
[1765904007924,6.87440604,2938.0,2937.5,0.00510604]
[1765904009324,4.62670604,2938.0,2937.9,2.7958]
[1765904009824,0.00510604,2938.0,2937.9,2.7958]
[1765904010121,4.6216,2938.6,2938.5,2.7958]
[1765904010321,3.2078,2938.6,2938.5,2.7958]
[1765904011727,3.2078,2938.6,2938.5,3.6302]
[1765904011918,3.2078,2938.6,2938.5,2.7958]
[1765904013025,2.80270604,2938.8,2937.9,3.2078]
[1765904013332,3.2078,2938.3,2937.9,2.7958]
[1765904013714,4.6216,2938.3,2938.2,1.3461]
[1765904013923,3.2078,2938.7,2938.0,8.36602794]
[1765904014223,3.2078,2938.7,2938.6,2.6299]
[1765904015226,4.5019,2938.7,2938.6,1.3073]
[1765904016521,5.784,2938.7,2938.2,0.1702]
[1765904017327,4.5019,2938.7,2938.6,1.329]
[1765904017828,3.2078,2938.7,2938.6,2.6516]
[1765904018326,0.00510604,2938.8,2938.7,2.6516]
[1765904020723,3.2078,2939.3,2939.2,2.6516]
[1765904021114,4.5019,2939.6,2939.5,1.329]
[1765904021321,3.2078,2939.6,2939.5,2.6516]
[1765904021521,3.21063239,2939.6,2939.5,2.65505617]
[1765904021827,4.50473239,2939.6,2939.5,2.65505617]
[1765904022714,3.21063239,2939.6,2939.5,3.41845617]
[1765904023323,0.00283239,2939.6,2939.5,3.41845617]
[1765904023531,0.00283239,2939.6,2939.5,7.75355166]
[1765904023725,0.00283239,2939.6,2939.5,10.96135166]
[1765904024424,0.00510604,2939.8,2939.7,2.6516]
[1765904025428,0.00825139,2939.8,2939.7,2.6516]
[1765904029125,0.7484,2940.5,2939.7,2.6516]
[1765904029328,4.5019,2940.6,2940.5,2.6516]
[1765904029733,4.5019,2940.6,2940.0,0.7077]
[1765904029734,5.784,2940.6,2940.0,0.7077]
[1765904029929,4.5019,2940.6,2940.5,2.6516]
[1765904030330,5.78789959,2940.6,2940.5,1.329]
[1765904031734,0.739,2940.5,2939.8,3.37791]
[1765904033232,2.0331,2940.5,2940.4,1.329]
[1765904033428,1.29799959,2940.6,2940.5,2.6516]
[1765904033628,2.58009959,2940.6,2940.5,2.6516]
[1765904033830,0.00389959,2940.6,2940.5,3.4024]
[1765904034829,0.00389959,2940.6,2940.5,2.6516]
[1765904035131,2.58009959,2940.6,2940.5,1.329]
[1765904035331,1.29799959,2940.6,2940.5,2.6516]
[1765904035727,0.00389959,2940.6,2940.5,2.6516]
[1765904036135,0.00510604,2940.8,2940.7,2.6516]
[1765904037136,0.0079744,2940.8,2940.7,2.6516]
[1765904038032,0.0079744,2940.8,2940.7,6.9778698]
[1765904038228,3.2078,2941.3,2941.2,2.6516]
[1765904039037,4.5019,2941.9,2941.8,2.6516]
[1765904039234,4.5019,2941.9,2941.8,2.6540638]
[1765904039235,4.50505034,2941.9,2941.8,2.6540638]
[1765904039535,5.78715034,2941.9,2941.8,1.3314638]
[1765904039736,5.78715034,2941.9,2941.8,0.0024638]
[1765904040532,4.50505034,2941.9,2941.8,2.6540638]
[1765904041227,11.78715034,2941.9,2941.8,0.0024638]
[1765904041539,2.5762,2941.1,2941.0,1.329]
[1765904042039,2.5762,2941.1,2940.6,4.41563424]
[1765904042337,2.5762,2941.1,2940.6,0.00353919]
[1765904042534,2.5762,2941.1,2940.6,0.00864523]
[1765904042837,0.739,2941.0,2940.6,0.00864523]
[1765904043431,1.2941,2940.8,2940.7,4.5368]
[1765904043633,1.1775,2941.0,2940.9,1.1261]
[1765904043838,1.1775,2941.0,2940.6,0.00864523]
[1765904043839,2.3324,2940.7,2940.6,0.00864523]
[1765904044134,2.3324,2939.9,2939.8,3.2078]
[1765904044535,2.3324,2939.9,2939.5,3.2078]
[1765904044739,0.7018,2940.5,2939.8,5.5165]
[1765904045236,0.17003,2941.2,2939.8,5.5165]
[1765904045237,0.00510604,2940.4,2940.3,2.3087]
[1765904047137,2.3324,2940.3,2940.2,3.2078]
[1765904048139,0.00510604,2940.4,2940.3,2.3087]
[1765904048342,1.18260604,2940.4,2940.3,1.1261]
[1765904048737,2.3324,2940.3,2939.9,0.00510604]
[1765904048943,3.0342,2940.0,2939.9,0.00510604]
[1765904049540,1.1775,2940.0,2939.9,1.13120604]
[1765904050145,3.0342,2940.0,2939.9,0.00510604]
[1765904050443,2.3324,2939.9,2938.9,19.2418]
[1765904050644,2.3324,2939.9,2939.0,0.5609]
[1765904051235,44.0078,2940.3,2939.8,1.1261]
[1765904051447,3.2078,2940.3,2940.2,1.1261]
[1765904051649,3.2078,2940.3,2940.2,2.3087]
[1765904052248,4.3853,2940.3,2939.8,0.00949406]
[1765904054648,2.3324,2939.9,2939.8,0.00949406]
[1765904058250,5.5402,2939.9,2939.8,0.00949406]
[1765904058454,3.0342,2939.5,2939.4,3.2078]
[1765904059353,3.03753956,2939.5,2939.4,3.21188126]
[1765904059945,3.2078,2940.2,2939.5,0.6692]
[1765904061046,3.21202291,2940.2,2939.5,0.6692]
[1765904061853,3.21202291,2940.2,2939.7,3.2078]
[1765904062249,0.00422291,2940.2,2939.7,3.2078]
[1765904063048,0.00510604,2940.4,2940.3,2.3087]
[1765904063244,2.3324,2940.2,2940.1,3.2078]
[1765904063552,1.1775,2939.8,2939.7,3.2078]
[1765904063755,3.2078,2940.3,2939.7,5.5165]
[1765904064158,3.21221406,2940.3,2939.7,5.5165]
[1765904064352,3.2173201,2940.3,2939.7,5.5165]
[1765904066054,2.3324,2939.8,2939.7,4.3339]
[1765904066258,2.3324,2939.8,2939.4,3.21188126]
[1765904066755,1.1775,2939.8,2939.7,1.1261]
[1765904067651,3.2173201,2940.3,2939.7,2.3087]
[1765904067951,1.1775,2939.8,2939.7,1.1261]
[1765904068157,2.3324,2939.8,2939.4,3.21188126]
[1765904068458,3.2173201,2940.3,2939.7,2.3087]
[1765904069054,2.3324,2939.8,2939.4,3.21188126]
[1765904069754,2.3324,2939.5,2939.4,3.21188126]
[1765904069964,3.0342,2939.5,2939.4,3.21188126]
[1765904071552,2.3324,2939.5,2939.4,4.33798126]
[1765904071960,2.3324,2939.5,2939.4,3.21188126]
[1765904071961,3.0342,2939.5,2939.4,3.21188126]
[1765904073458,3.0342,2939.5,2939.4,0.00408126]
[1765904076361,3.2173201,2940.3,2939.9,2.0379]
[1765904076668,1.0713,2940.0,2939.9,2.0379]
[1765904076866,3.2173201,2940.3,2939.9,2.0379]
[1765904077063,4.2886201,2940.3,2940.2,2.0379]
[1765904077261,3.2173201,2940.3,2940.2,2.0379]
[1765904077570,0.0095201,2940.3,2940.2,5.2457]
[1765904078565,3.2078,2941.1,2940.2,5.2457]
[1765904078972,3.2078,2941.1,2940.3,4.33272502]
[1765904079869,0.00510604,2941.0,2940.3,4.33272502]
[1765904080271,0.63670604,2941.0,2940.3,4.33272502]
[1765904080572,3.2078,2940.8,2940.2,3.2078]
[1765904080774,0.63670604,2941.0,2940.2,3.2078]
[1765904081369,2.77610604,2941.0,2940.2,3.2078]
[1765904081573,2.14450604,2941.0,2940.9,0.9966]
[1765904081769,1.07640604,2941.0,2940.9,0.9966]
[1765904083481,2.14450604,2941.0,2940.7,3.2078]
[1765904083676,2.14450604,2941.0,2940.9,0.9966]
[1765904083983,1.07640604,2941.0,2940.9,0.9966]
[1765904084379,1.07640604,2941.0,2940.7,3.2078]
[1765904084380,2.1394,2940.8,2940.7,3.2078]
[1765904084679,2.1394,2940.8,2940.3,3.2078]
[1765904085079,2.1394,2940.4,2940.3,4.2044]
[1765904085285,2.1394,2940.4,2940.3,3.2078]
[1765904085475,2.1394,2940.4,2940.3,4.2044]
[1765904085983,1.0713,2940.4,2940.3,4.2044]
[1765904086282,0.63670604,2941.0,2940.3,5.2457]
[1765904087981,1.0713,2940.4,2940.3,4.2044]
[1765904088182,2.1394,2940.4,2940.3,4.2044]
[1765904088384,2.1394,2940.4,2940.3,3.2078]
[1765904088785,2.1394,2940.4,2940.3,4.2044]
[1765904088981,0.63670604,2941.0,2940.3,5.2457]
[1765904089883,1.07640604,2941.0,2940.9,2.0379]
[1765904090480,2.77610604,2941.0,2940.4,3.2078]
[1765904090781,2.77610604,2941.0,2940.5,0.6477]
[1765904091688,1.07640604,2941.0,2940.9,2.0379]
[1765904091984,0.00510604,2941.0,2940.9,2.0379]
[1765904095791,0.80159,2942.0,2941.0,2.645]
[1765904095792,3.8394,2942.0,2941.0,2.645]
[1765904095982,2.1394,2942.0,2941.9,0.9966]
[1765904096184,1.0713,2942.0,2941.9,2.0379]
[1765904096690,2.1394,2942.0,2941.6,3.2078]
[1765904096990,2.77344532,2942.0,2941.6,3.21194912]
[1765904097598,1.0713,2941.7,2941.6,2.04204912]
[1765904098095,2.1394,2941.7,2941.6,0.00414912]
[1765904098779,2.1394,2941.7,2941.6,1.00074912]
[1765904098977,2.1394,2941.7,2941.6,0.00414912]
[1765904099385,3.84184532,2942.0,2941.6,2.04204912]
[1765904099785,0.63404532,2942.0,2941.6,2.04204912]
[1765904100187,2.1394,2941.7,2941.6,1.00074912]
[1765904100491,2.1394,2941.7,2941.6,0.00414912]
[1765904100884,2.1394,2941.7,2941.6,1.00074912]
[1765904101091,0.63404532,2942.0,2941.6,5.24984912]
[1765904101392,2.77344532,2942.0,2941.9,0.9966]
[1765904101592,2.77344532,2942.0,2941.6,0.00414912]
[1765904101895,0.00244532,2942.0,2941.9,2.0379]
[1765904102086,1.07374532,2942.0,2941.9,2.0379]
[1765904102391,2.14184532,2942.0,2941.9,0.9966]
[1765904102587,1.0713,2941.7,2941.6,4.20854912]
[1765904102788,2.1394,2941.7,2941.6,0.00414912]
[1765904102995,1.0713,2940.9,2940.8,4.2859726]
[1765904103184,2.1394,2940.8,2940.7,4.2044]
[1765904103585,2.1394,2940.8,2940.7,0.9966]
[1765904103886,2.4578,2940.5,2940.1,3.2078]
[1765904104192,2.4578,2940.5,2940.4,0.9456]
[1765904106003,2.4578,2940.5,2940.1,3.21057846]
[1765904106004,1.891,2940.2,2940.1,3.21057846]
[1765904106296,1.891,2940.2,2940.1,0.00277846]
[1765904107298,3.7746,2940.5,2940.1,0.00277846]
[1765904107488,1.891,2940.2,2940.1,0.00277846]
[1765904109099,1.891,2940.1,2940.0,6.04e-06]
[1765904110000,1.891,2940.1,2940.0,0.00345514]
[1765904111101,0.9866,2939.3,2939.2,4.1534]
[1765904111395,1.891,2939.3,2939.2,4.1534]
[1765904111595,0.9866,2939.3,2939.2,5.1452]
[1765904111995,2.4578,2939.5,2939.4,0.9456]
[1765904112298,2.46207656,2939.5,2939.4,0.94982479]
[1765904113092,1.89527656,2939.5,2939.4,1.94162479]
[1765904113296,2.46207656,2939.5,2939.4,0.00422479]
[1765904113495,1.891,2939.3,2939.2,0.00510604]
[1765904113700,5.0988,2939.3,2939.2,0.00510604]
[1765904114001,1.891,2939.3,2939.2,0.00510604]
[1765904114595,1.891,2939.3,2939.2,0.00860366]
[1765904116105,4.1944,2939.4,2939.3,1.9374]
[1765904116301,3.2078,2939.4,2939.3,1.9374]
[1765904116700,1.891,2939.3,2939.2,0.00860366]
[1765904116902,1.891,2939.3,2939.2,1.94600366]
[1765904117198,0.9866,2939.3,2939.2,1.94600366]
[1765904117701,0.9866,2939.3,2939.2,5.15380366]
[1765904118193,0.99087656,2939.5,2939.4,1.9374]
[1765904118995,1.891,2939.3,2939.2,0.00860366]
[1765904120100,40.80427656,2939.5,2939.4,1.9374]
[1765904120301,0.99087656,2939.5,2939.4,1.9374]
[1765904120500,1.89527656,2939.5,2939.4,0.9456]
[1765904120798,5.10307656,2939.5,2939.4,0.9456]
[1765904121000,0.00427656,2939.5,2939.4,1.9374]
[1765904123206,1.89527656,2939.5,2939.4,0.9456]
[1765904123999,1.89527656,2939.5,2939.4,1.9374]
[1765904124205,0.99087656,2939.5,2939.4,1.9374]
[1765904124605,1.89527656,2939.5,2939.4,0.9456]
[1765904125302,1.89527656,2939.5,2939.2,3.21640366]
[1765904125303,1.891,2939.3,2939.2,3.21640366]
[1765904127012,0.5747,2939.0,2938.5,0.5901]
[1765904127313,3.2078,2938.6,2938.5,2.5275]
[1765904127504,3.2078,2938.9,2938.8,1.9374]
[1765904128011,3.2078,2938.9,2938.8,1.93992397]
[1765904128309,0.00510604,2939.1,2939.0,2.5275]
[1765904129311,6.04e-06,2939.1,2939.0,2.5275]
[1765904131111,4.75860604,2939.1,2939.0,0.5901]
[1765904131509,3.20780604,2939.1,2939.0,1.5357]
[1765904131704,3.20780604,2939.1,2939.0,2.5275]
[1765904132014,6.04e-06,2939.1,2939.0,2.5275]
[1765904132214,3.20780604,2939.1,2939.0,2.5275]
[1765904133709,4.70610604,2939.1,2939.0,0.5901]
[1765904133915,4.70610604,2939.1,2939.0,1.6436]
[1765904134213,3.97200604,2939.1,2939.0,2.6949]
[1765904135821,3.20780604,2939.1,2939.0,2.6949]
[1765904136421,6.04e-06,2939.1,2939.0,0.5901]
[1765904136620,3.92110604,2939.1,2939.0,1.6241]
[1765904136818,4.63440604,2939.1,2939.0,1.6241]
[1765904137018,4.63440604,2939.1,2939.0,0.5901]
[1765904137413,0.7026,2938.9,2938.8,0.00252397]
[1765904137618,1.4052,2938.9,2938.8,0.00252397]
[1765904139609,3.20780604,2939.1,2939.0,2.6747]
[1765904139809,3.88930604,2939.1,2939.0,2.6747]
[1765904140217,3.20780604,2939.1,2939.0,2.6747]
[1765904140615,4.54980604,2939.1,2939.0,0.6362]
[1765904140825,4.54980604,2939.1,2939.0,1.6702]
[1765904141014,3.87880604,2939.1,2939.0,2.6747]
[1765904142926,4.53930604,2939.1,2939.0,0.6362]
[1765904143127,4.53930604,2939.1,2939.0,1.6702]
[1765904143424,3.84740604,2939.1,2939.0,2.6747]
[1765904144424,6.04e-06,2939.1,2939.0,0.6362]
[1765904144818,6.04e-06,2939.1,2939.0,3.844]
[1765904146223,6.04e-06,2939.1,2939.0,0.6362]
[1765904146424,1.217,2938.9,2938.8,4.28849657]
[1765904146629,1.217,2938.9,2938.8,0.00252397]
[1765904153642,1.217,2938.9,2938.8,1.03652397]
[1765904153837,1.217,2938.9,2938.8,0.00252397]
[1765904154136,4.26220604,2939.1,2939.0,1.6702]
[1765904154342,4.26220604,2939.1,2939.0,0.6362]
[1765904155550,3.20780604,2939.1,2939.0,2.6747]
[1765904157744,6.04e-06,2939.1,2939.0,0.6362]
[1765904158048,0.00427656,2939.5,2939.4,2.0385]
[1765904158845,3.2078,2939.8,2939.7,2.0385]
[1765904159745,0.00510604,2940.0,2939.9,2.0385]
[1765904160144,0.00882644,2940.0,2939.9,2.0385]
[1765904160640,0.4726,2939.6,2939.5,6.9606726]
[1765904160846,3.6706,2939.8,2939.7,1.034]
[1765904161045,3.2078,2939.8,2939.7,2.0385]
[1765904161249,0.93442644,2940.0,2939.9,1.034]
[1765904161452,0.47162644,2940.0,2939.9,2.0385]
[1765904161844,0.47162644,2940.0,2939.5,0.6362]
[1765904161845,0.93442644,2940.0,2939.5,0.6362]
[1765904162051,0.93442644,2940.0,2939.1,3.37795]
[1765904162052,0.453,2939.2,2939.1,6.3244726]
[1765904162244,3.2078,2939.5,2939.1,6.3244726]
[1765904162445,3.2078,2939.5,2939.1,2.0385]
[1765904163153,3.2078,2939.5,2939.4,2.0385]
[1765904163341,3.2078,2939.9,2939.4,2.0385]
[1765904163548,3.2078,2939.9,2939.8,2.0385]
[1765904164755,0.44122644,2940.0,2939.9,1.9389]
[1765904165350,0.8454,2939.2,2939.1,3.2078]
[1765904165650,0.8454,2938.9,2938.6,4.29107864]
[1765904165851,0.8454,2938.9,2938.6,0.00510604]
[1765904166354,0.8454,2938.9,2938.8,0.96422397]
[1765904166658,0.4227,2938.9,2938.8,0.96422397]
[1765904166954,4.0148,2939.4,2939.3,0.9617]
[1765904167143,3.6113,2939.4,2939.3,0.9617]
[1765904167347,0.4035,2939.1,2939.0,1.4891]
[1765904167550,0.4035,2939.1,2939.0,2.394]
[1765904167853,3.2078,2939.4,2939.0,2.394]
[1765904168049,3.2078,2939.4,2939.3,1.8666]
[1765904169756,3.2078,2939.7,2939.6,1.8666]
[1765904170062,0.7496,2939.3,2939.2,4.2859726]
[1765904170255,0.7496,2939.3,2939.2,0.9617]
[1765904170755,3.5826,2939.7,2939.6,1.8666]
[1765904170952,3.2078,2939.7,2939.6,1.8666]
[1765904172060,3.21662644,2940.0,2939.6,1.8666]
[1765904172653,3.21662644,2940.0,2939.9,1.8666]
[1765904172954,4.13132644,2940.0,2939.5,0.5274]
[1765904173152,0.4525,2939.2,2939.1,5.2476726]
[1765904173352,0.905,2939.2,2939.1,4.2859726]
[1765904173558,0.4525,2939.1,2939.0,3.7352]
[1765904173957,0.4525,2939.1,2939.0,4.6969]
[1765904174361,0.8952,2939.1,2939.0,4.6969]
[1765904174561,0.8952,2939.1,2939.0,3.7352]
[1765904174954,0.8757,2938.9,2938.6,0.00510604]
[1765904175255,0.433,2938.9,2938.6,0.00510604]
[1765904175459,0.433,2938.9,2938.8,0.96422397]
[1765904175651,40.8,2939.1,2939.0,0.5274]
[1765904176060,0.8466,2939.1,2939.0,0.5274]
[1765904176960,3.2078,2939.2,2939.1,1.8666]
[1765904178653,3.6215,2939.2,2939.1,0.9617]
[1765904179056,3.2078,2939.2,2939.1,1.8666]
[1765904179260,3.6022,2939.2,2939.1,1.8666]
[1765904179765,3.2078,2939.2,2939.1,1.8666]
[1765904179965,3.6022,2939.5,2939.4,0.9617]
[1765904180166,3.9871,2939.5,2939.0,0.5274]
[1765904180367,3.6022,2939.5,2939.4,0.9617]
[1765904180559,3.2078,2939.5,2939.4,1.8666]
[1765904180765,0.3849,2939.6,2939.5,1.4891]
[1765904180967,0.7603,2939.6,2939.5,1.4891]
[1765904181265,0.7603,2939.6,2939.5,0.5274]
[1765904182369,0.3849,2939.6,2939.5,1.4891]
[1765904183459,0.3849,2939.6,2939.5,2.394]
[1765904183664,3.2078,2939.8,2939.5,2.394]
[1765904183867,3.2078,2939.8,2939.7,1.8666]
[1765904184366,3.2078,2940.1,2939.9,1.8666]
[1765904184758,0.70282644,2940.0,2939.5,0.5274]
[1765904185970,0.70282644,2940.0,2939.9,0.9617]
[1765904187168,0.35582644,2940.0,2939.9,0.9617]
[1765904187964,0.00882644,2940.0,2939.9,1.8666]
[1765904189069,3.2078,2940.7,2940.6,1.8666]
[1765904189264,3.5081,2941.0,2940.9,1.8666]
[1765904189471,3.2078,2941.0,2940.9,1.8666]
[1765904190066,0.0029029,2941.0,2940.9,1.87024227]
[1765904191172,0.00510604,2941.2,2941.1,1.8666]
[1765904192073,0.00824576,2941.2,2941.1,1.8666]
[1765904192369,0.00824576,2941.2,2941.1,5.0744]
[1765904192671,3.2078,2941.6,2941.5,2.394]
[1765904193272,0.2736,2942.1,2942.0,1.4891]
[1765904193468,3.4842462,2942.1,2942.0,0.5274]
[1765904193679,3.4842462,2942.1,2942.0,2.394]
[1765904194376,3.7487462,2942.1,2942.0,0.5274]
[1765904194563,3.2106462,2942.1,2942.0,2.2666]
[1765904194967,3.7305462,2942.1,2942.0,1.4184]
[1765904195166,3.7305462,2942.1,2942.0,0.5274]
[1765904195769,0.2463,2941.6,2941.5,2.2666]
[1765904195971,3.7032462,2942.1,2942.0,0.5423]
[1765904198680,0.2283,2941.6,2941.5,2.2666]
[1765904198879,0.4566,2941.6,2941.5,0.5274]
[1765904199082,0.4566,2941.6,2941.0,3.7352]
[1765904199282,3.2078,2941.7,2941.0,5.4744]
[1765904199976,0.4206,2941.6,2941.5,1.4333]
[1765904200377,3.4181,2941.7,2941.6,0.891]
[1765904200774,3.6284,2941.7,2941.6,0.891]
[1765904200978,3.2078,2941.7,2941.6,1.7392]
[1765904201281,3.6134462,2942.1,2942.0,1.4333]
[1765904201577,3.6134462,2942.1,2942.0,0.5423]
[1765904205781,0.1573,2941.6,2941.5,1.4333]
[1765904205978,0.1573,2941.6,2941.5,2.2815]
[1765904206375,3.2106462,2942.1,2941.5,2.2815]
[1765904206579,0.3146,2941.6,2941.5,1.4333]
[1765904207182,0.1573,2941.6,2941.5,2.2815]
[1765904209483,0.3058,2941.6,2941.5,0.5423]
[1765904209681,3.2078,2941.8,2941.0,5.4744]
[1765904209682,0.1312,2941.1,2941.0,5.4744]
[1765904209882,3.3778,2941.8,2941.5,0.5423]
[1765904210184,0.245,2941.6,2941.5,0.5423]
[1765904210484,3.3778,2941.8,2941.0,5.4744]
[1765904210984,0.1139,2941.6,2941.5,2.2815]
[1765904211181,3.3245462,2942.1,2942.0,2.2815]
[1765904211382,0.1167462,2942.1,2942.0,2.2815]
[1765904211584,0.0028462,2942.1,2942.0,2.2815]
[1765904213391,0.2134462,2942.1,2942.0,0.5423]
[1765904215688,0.0028462,2942.1,2942.0,2.2815]
[1765904217685,0.1367462,2942.1,2942.0,1.4333]
[1765904218291,0.0740462,2942.1,2942.0,2.2815]
[1765904218491,0.1283462,2942.1,2942.0,0.5423]
[1765904219087,0.1283462,2942.1,2941.5,0.5423]
[1765904219088,0.0918,2941.6,2941.5,0.5423]
[1765904219580,0.0918,2941.6,2941.5,1.4333]
[1765904219783,0.0459,2941.6,2941.5,2.2815]
[1765904220384,3.2078,2941.7,2941.6,1.7392]
[1765904220586,3.2453,2941.7,2941.6,1.7392]
[1765904221691,0.0584,2941.1,2941.0,1.4184]
[1765904221888,0.0584,2941.1,2941.0,0.5274]
[1765904222491,0.0418,2941.0,2940.9,0.00364227]
[1765904223198,0.0209,2941.0,2940.9,0.00364227]
[1765904223496,3.2204,2941.2,2941.1,1.7392]
[1765904223899,0.0112,2941.1,2941.0,0.5423]
[1765904224101,0.0112,2941.0,2940.9,0.00364227]
[1765904224498,0.0056,2941.1,2941.0,2.0418]
[1765904224893,0.0056,2941.1,2941.0,1.2528]
[1765904225393,0.0056,2941.1,2941.0,2.0418]
[1765904225996,3.37783,2941.2,2941.1,0.7889]
[1765904226192,3.37783,2941.2,2941.1,1.5779]
[1765904226391,3.37783,2941.2,2941.0,0.4639]
[1765904226698,3.37783,2941.2,2941.1,1.5779]
[1765904227096,3.37783,2941.2,2941.0,0.4639]
[1765904228094,3.37783,2941.2,2941.1,0.7889]
[1765904228402,3.37783,2941.2,2941.0,0.4639]
[1765904228700,3.37783,2941.2,2941.0,1.2528]
[1765904229001,3.37783,2941.2,2941.0,0.4639]
[1765904230208,3.37783,2941.2,2941.0,1.2528]
[1765904230510,3.2078,2941.2,2941.1,0.7889]
[1765904231512,3.2078,2941.5,2941.4,1.5779]
[1765904232306,0.0028462,2942.1,2942.0,1.5779]
[1765904232613,0.0028462,2942.1,2942.0,2.0418]
[1765904232910,0.0028462,2942.1,2942.0,5.2496]
[1765904239415,3.2078,2943.0,2942.9,1.5779]
[1765904239622,0.4758,2944.0,2943.4,1.5779]
[1765904239914,3.2078,2943.5,2943.4,1.5779]
[1765904240308,3.210466,2943.5,2943.4,1.58170004]
[1765904240513,0.002666,2943.5,2943.4,1.58170004]
[1765904241115,2.022466,2943.5,2943.4,0.00380004]
[1765904241320,0.002666,2943.5,2943.4,1.58170004]
[1765904241916,0.782266,2943.5,2943.4,1.58170004]
[1765904242111,1.546666,2943.5,2943.4,0.79270004]
[1765904242509,2.022466,2943.5,2943.4,0.00380004]
[1765904249823,2.022466,2943.5,2943.4,4e-08]
[1765904250126,0.7796,2942.7,2942.6,4.7857]
[1765904250624,2.0198,2943.0,2942.9,0.7889]
[1765904250828,1.544,2943.0,2942.9,0.7889]
[1765904251023,1.544,2943.0,2942.9,0.79324721]
[1765904251325,2.0198,2943.0,2942.9,0.00434721]
[1765904251529,1.544,2941.8,2941.7,3.9967]
[1765904251724,1.544,2941.8,2941.7,3.2078]
[1765904252430,1.544,2941.8,2941.7,3.21034118]
[1765904253027,1.544,2941.8,2941.7,0.00254118]
[1765904253226,0.7796,2941.4,2941.3,4.41078323]
[1765904253424,0.7796,2941.4,2941.3,1.5779]
[1765904253825,0.16999,2941.9,2941.3,1.5779]
[1765904254223,0.17431866,2941.9,2941.3,1.58553507]
[1765904254726,0.00432866,2941.9,2941.8,1.7579]
[1765904255029,1.77902866,2941.9,2941.5,0.5292]
[1765904255223,1.7747,2941.6,2941.3,0.00763507]
[1765904255430,0.8857,2941.4,2941.3,1.78123507]
[1765904256229,1.77902866,2941.9,2941.8,0.871]
[1765904256629,0.00432866,2941.9,2941.8,1.7736]
[1765904258239,0.8857,2941.7,2941.6,4.0788]
[1765904258528,1.77902866,2941.9,2941.8,0.871]
[1765904258729,0.00432866,2941.9,2941.8,1.7736]
[1765904259631,1.7747,2942.5,2942.4,0.871]
[1765904259829,0.8857,2942.3,2942.2,4.0788]
[1765904260035,2.3105,2942.0,2941.9,3.2078]